bitfinex/quotes_BTCUSD_20250522
["timestamp","ask_amount","ask_price","bid_price","bid_amount"]
[1747921272541,0.37301194,111300.0,111290.0,0.76623186]
[1747921272961,0.37301194,111300.0,111290.0,0.00019186]
[1747921273173,0.37301194,111300.0,111290.0,0.76619186]
[1747921273614,0.37301194,111300.0,111290.0,0.00019186]
[1747921273615,0.71301194,111300.0,111290.0,0.00019186]
[1747921273854,0.72301194,111300.0,111290.0,0.26951186]
[1747921274074,0.72301194,111300.0,111290.0,0.00019186]
[1747921274541,0.71301194,111300.0,111290.0,0.26951186]
[1747921274966,0.66617109,111300.0,111290.0,0.26951186]
[1747921275185,0.20796214,111300.0,111290.0,0.26951186]
[1747921275407,0.20796214,111300.0,111290.0,0.34166519]
[1747921275632,0.19966339,111300.0,111290.0,0.26951186]
[1747921275850,0.62920895,111300.0,111290.0,0.00019186]
[1747921276067,0.79737131,111300.0,111290.0,0.00019186]
[1747921276290,0.79537131,111300.0,111290.0,0.76627186]
[1747921276504,0.7088498,111300.0,111290.0,0.76627186]
[1747921277161,0.7171813,111300.0,111290.0,0.76627186]
[1747921277619,0.7271813,111300.0,111290.0,0.00019186]
[1747921277838,0.73572225,111300.0,111290.0,0.00019186]
[1747921278054,0.82524376,111300.0,111290.0,0.00019186]
[1747921278309,0.73572225,111300.0,111290.0,0.00019186]
[1747921279178,0.73272225,111300.0,111290.0,0.00019186]
[1747921279623,0.73672225,111300.0,111290.0,0.00019186]
[1747921281394,0.74737946,111300.0,111290.0,0.26951186]
[1747921281811,0.74737946,111300.0,111290.0,0.00019186]
[1747921282052,0.53771668,111270.0,111260.0,0.002]
[1747921282270,0.71290309,111270.0,111260.0,0.002]
[1747921282709,0.73210125,111270.0,111260.0,0.002]
[1747921283151,0.74043275,111270.0,111260.0,0.002]
[1747921283837,0.74243275,111270.0,111260.0,0.002]
[1747921284039,0.72410125,111270.0,111260.0,0.002]
[1747921284269,0.67133733,111270.0,111260.0,0.27136]
[1747921284489,0.65679648,111270.0,111260.0,0.76916]
[1747921285002,0.63759832,111270.0,111260.0,0.76916]
[1747921285234,0.62926224,111270.0,111260.0,0.76916]
[1747921285668,0.64380309,111270.0,111260.0,0.76916]
[1747921285901,0.64380309,111270.0,111260.0,0.4998]
[1747921285902,0.79095752,111270.0,111260.0,0.4998]
[1747921286112,0.70860309,111270.0,111260.0,0.4998]
[1747921286329,0.28926224,111270.0,111260.0,0.4998]
[1747921286539,0.30380309,111270.0,111260.0,0.4998]
[1747921286757,0.62926224,111270.0,111260.0,0.4998]
[1747921286975,0.19971668,111270.0,111260.0,0.50878779]
[1747921287197,0.19971668,111270.0,111260.0,0.80947542]
[1747921287198,0.02896014,111270.0,111260.0,0.80947542]
[1747921287418,0.002,111270.0,111260.0,0.95457475]
[1747921287628,0.001,111270.0,111260.0,0.95457475]
[1747921287833,0.02795966,111270.0,111260.0,0.95457475]
[1747921288059,0.001,111270.0,111260.0,0.95457475]
[1747921288713,0.001,111270.0,111260.0,0.95112347]
[1747921289149,0.01797146,111280.0,111270.0,0.27020342]
[1747921289362,0.02695763,111280.0,111270.0,0.92752342]
[1747921289580,0.01997049,111290.0,111280.0,0.26988485]
[1747921289814,0.01997,111290.0,111280.0,0.26988485]
[1747921290043,0.01098367,111310.0,111300.0,0.20664771]
[1747921290257,0.03808566,111310.0,111300.0,1.02746771]
[1747921290470,0.0201184,111310.0,111300.0,1.02746771]
[1747921290679,0.03808574,111310.0,111300.0,1.02746771]
[1747921291137,0.01113497,111310.0,111300.0,1.11701327]
[1747921291354,0.00215178,111310.0,111300.0,1.11701327]
[1747921292021,0.01113505,111310.0,111300.0,1.11701327]
[1747921292243,0.21776451,111310.0,111300.0,1.11701343]
[1747921292473,0.21776435,111310.0,111300.0,0.0333]
[1747921292681,0.19979757,111310.0,111300.0,0.75508]
[1747921292932,0.20079757,111310.0,111300.0,0.75508]
[1747921293590,0.17971066,111290.0,111280.0,0.0371]
[1747921293797,0.19768115,111290.0,111280.0,0.78858526]
[1747921294028,0.19468115,111290.0,111280.0,0.75496]
[1747921294688,0.17970776,111300.0,111290.0,0.06904058]
[1747921294689,0.00898448,111300.0,111290.0,0.06904058]
[1747921294913,0.00315178,111310.0,111300.0,0.19766339]
[1747921295154,0.00315178,111310.0,111300.0,0.54046755]
[1747921295155,0.03010231,111310.0,111300.0,0.54046755]
[1747921295368,0.03010175,111310.0,111300.0,0.54046755]
[1747921295573,0.21876427,111310.0,111300.0,0.53148339]
[1747921295790,0.0390859,111310.0,111300.0,0.54046755]
[1747921296001,0.03010215,111310.0,111300.0,0.54046755]
[1747921296213,0.02111848,111310.0,111300.0,0.63001311]
[1747921296454,0.03010207,111310.0,111300.0,0.63001311]
[1747921296656,0.01213505,111310.0,111300.0,0.63001311]
[1747921296880,0.02111856,111310.0,111300.0,0.63001311]
[1747921297263,0.03908574,111310.0,111300.0,0.63001311]
[1747921297499,0.03010199,111310.0,111300.0,0.63001311]
[1747921297681,0.03908574,111310.0,111300.0,0.63001311]
[1747921297885,0.03010199,111310.0,111300.0,0.63001311]
[1747921298335,0.03908566,111310.0,111300.0,0.63001311]
[1747921298503,0.22774778,111310.0,111300.0,0.24419451]
[1747921298678,0.2097814,111310.0,111300.0,0.47592827]
[1747921298909,0.03010303,111310.0,111300.0,0.49389627]
[1747921299104,0.21876531,111310.0,111300.0,0.52459627]
[1747921299340,0.0211192,111310.0,111300.0,0.55739627]
[1747921299526,0.20978148,111310.0,111300.0,0.19766371]
[1747921299733,0.03010303,111310.0,111300.0,0.48491243]
[1747921299931,0.03010303,111310.0,111300.0,0.49389659]
[1747921300168,0.2097814,111310.0,111300.0,0.49389659]
[1747921300335,0.2097814,111310.0,111300.0,0.48491243]
[1747921300535,0.01213521,111310.0,111300.0,0.49389659]
[1747921300750,0.02111864,111310.0,111300.0,0.52569659]
[1747921301097,0.03908582,111310.0,111300.0,0.52569659]
[1747921301318,0.2277481,111310.0,111300.0,0.52569659]
[1747921301528,0.20978148,111310.0,111300.0,0.26928]
[1747921301753,0.20079773,111310.0,111300.0,0.46694371]
[1747921301986,0.00315178,111310.0,111300.0,0.88841227]
[1747921302203,0.00315178,111310.0,111300.0,0.97795783]
[1747921303270,0.00315178,111310.0,111300.0,0.97799783]
[1747921303486,0.00898093,111340.0,111330.0,0.20659203]
[1747921303699,0.19059403,111350.0,111340.0,0.1975927]
[1747921303919,0.20906126,111350.0,111340.0,0.1975927]
[1747921304563,0.20906126,111350.0,111340.0,0.20657371]
[1747921305016,0.21804106,111350.0,111340.0,0.20657371]
[1747921305221,0.21804179,111350.0,111340.0,0.1975927]
[1747921305449,0.20906159,111350.0,111340.0,0.20657379]
[1747921305697,0.01148622,111350.0,111340.0,0.21555472]
[1747921305931,0.0035061,111350.0,111340.0,0.36670028]
[1747921307042,0.0035061,111350.0,111340.0,0.36674028]
[1747921307916,0.0025061,111350.0,111340.0,0.38118515]
[1747921308139,0.01148606,111350.0,111340.0,0.38118515]
[1747921308356,0.0294467,111350.0,111340.0,0.34160422]
[1747921308494,0.02046626,111350.0,111340.0,0.61978515]
[1747921308718,0.02046618,111350.0,111340.0,0.61978515]
[1747921308916,0.004,111370.0,111340.0,0.98130422]
[1747921309163,0.21066922,111370.0,111360.0,0.19755706]
[1747921309369,0.04904523,111370.0,111360.0,1.05966134]
[1747921309578,0.21964845,111370.0,111360.0,1.0506821]
[1747921309782,0.02210906,111370.0,111360.0,1.06864082]
[1747921309924,0.02210938,111370.0,111360.0,1.06864082]
[1747921310174,0.0041518,111370.0,111360.0,1.40864082]
[1747921310395,6e-05,111380.0,111370.0,0.26861782]
[1747921310602,6e-05,111380.0,111370.0,0.35816338]
[1747921311023,0.004,111390.0,111380.0,0.92314014]
[1747921311217,0.01,111400.0,111390.0,0.60858075]
[1747921311421,0.002,111410.0,111400.0,0.20646221]
[1747921311617,0.01097529,111410.0,111400.0,0.33117877]
[1747921311845,0.00215171,111410.0,111400.0,0.34913151]
[1747921312072,0.2085949,111410.0,111400.0,0.34913167]
[1747921312277,0.0380535,111410.0,111400.0,0.36708393]
[1747921312476,0.01112683,111410.0,111400.0,0.70708393]
[1747921312714,0.02907781,111410.0,111400.0,0.70708393]
[1747921312929,0.02907765,111410.0,111400.0,0.97624393]
[1747921313138,0.02907781,111410.0,111400.0,0.97624393]
[1747921313305,0.0201022,111410.0,111400.0,0.97624393]
[1747921313513,0.02907773,111410.0,111400.0,0.97824393]
[1747921313715,0.02010212,111410.0,111400.0,0.97828393]
[1747921314134,0.01112683,111410.0,111400.0,0.97828393]
[1747921314347,0.00215171,111410.0,111400.0,0.97828393]
[1747921314789,0.00215171,111410.0,111400.0,0.99145534]
[1747921314997,0.02892168,111430.0,111420.0,0.20642498]
[1747921315253,0.0199476,111430.0,111420.0,1.05029062]
[1747921315451,0.002,111430.0,111420.0,1.4305651]
[1747921315685,0.01097359,111430.0,111420.0,1.4305651]
[1747921315966,0.01994727,111430.0,111420.0,1.4631651]
[1747921316181,0.03789503,111430.0,111420.0,1.4631651]
[1747921316418,0.21738055,111430.0,111420.0,1.41261614]
[1747921316822,0.21838055,111430.0,111420.0,0.42954556]
[1747921317025,0.20043311,111430.0,111420.0,1.09432]
[1747921317240,0.20043311,111430.0,111420.0,1.28279586]
[1747921317444,0.20043311,111430.0,111420.0,1.09432]
[1747921318068,0.02992111,111430.0,111420.0,1.3902907]
[1747921318277,0.2273543,111430.0,111420.0,1.39033086]
[1747921318487,0.20940703,111430.0,111420.0,1.38135638]
[1747921318715,0.20940703,111430.0,111420.0,1.3903311]
[1747921318932,0.20940703,111430.0,111420.0,1.39930574]
[1747921319144,0.20940703,111430.0,111420.0,1.4082803]
[1747921319374,0.02094735,111430.0,111420.0,1.40827982]
[1747921319786,0.02094743,111430.0,111420.0,1.44147982]
[1747921319983,0.03889551,111430.0,111420.0,1.44147982]
[1747921320195,0.03889551,111430.0,111420.0,0.63601078]
[1747921320196,0.21838095,111430.0,111420.0,0.63601078]
[1747921320409,0.20043311,111430.0,111420.0,4e-05]
[1747921320615,0.20043311,111430.0,111420.0,0.75304]
[1747921320831,0.20043311,111430.0,111420.0,0.82404]
[1747921321039,0.23273311,111430.0,111420.0,4e-05]
[1747921321251,0.20043311,111430.0,111420.0,0.75304]
[1747921321666,0.20870665,111430.0,111420.0,4e-05]
[1747921321886,0.27350665,111430.0,111420.0,1.09304]
[1747921322089,0.24170665,111430.0,111420.0,1.09304]
[1747921322302,0.33125221,111430.0,111420.0,1.09304]
[1747921322511,0.36305221,111430.0,111420.0,0.75304]
[1747921322750,0.36305221,111430.0,111420.0,1.09304]
[1747921322970,0.36305221,111430.0,111420.0,0.48404]
[1747921323190,0.27680908,111410.0,111400.0,4e-05]
[1747921323429,0.11635464,111410.0,111400.0,4e-05]
[1747921323642,0.31662831,111410.0,111400.0,4e-05]
[1747921323864,0.31382287,111410.0,111400.0,4e-05]
[1747921324087,0.20574177,111410.0,111400.0,4e-05]
[1747921324310,0.02622404,111410.0,111400.0,0.54702217]
[1747921324530,0.00897529,111410.0,111400.0,0.5554787]
[1747921324739,0.1974509,111420.0,111410.0,0.34]
[1747921324948,0.1974509,111420.0,111410.0,0.609]
[1747921325370,0.1974509,111420.0,111410.0,1.09296]
[1747921325591,0.1974509,111420.0,111410.0,1.09288716]
[1747921325806,0.20573783,111420.0,111410.0,1.09288716]
[1747921326015,0.20573783,111420.0,111410.0,1.27240425]
[1747921326229,0.20773783,111420.0,111410.0,1.09288716]
[1747921327521,0.20773783,111420.0,111410.0,1.27240425]
[1747921327733,0.01028693,111420.0,111410.0,1.29035555]
[1747921327940,0.02823645,111420.0,111410.0,1.30830637]
[1747921328156,0.22568679,111420.0,111410.0,1.29035555]
[1747921328377,0.20773775,111420.0,111410.0,0.33992716]
[1747921328597,0.20773775,111420.0,111410.0,1.09288716]
[1747921328834,0.01926157,111420.0,111410.0,1.299331]
[1747921329035,0.01926133,111420.0,111410.0,1.39785185]
[1747921329245,0.002,111420.0,111410.0,1.39785185]
[1747921329462,0.002,111420.0,111410.0,1.46045185]
[1747921330554,0.01994904,111420.0,111410.0,1.46045201]
[1747921330759,0.002,111420.0,111410.0,1.46045201]
[1747921331199,0.002,111420.0,111410.0,4.96334301]
[1747921331650,0.02826334,111420.0,111410.0,4.96334301]
[1747921331860,0.00831462,111420.0,111410.0,4.96334301]
[1747921332031,0.00897432,111420.0,111410.0,4.96334301]
[1747921332251,0.03889536,111430.0,111420.0,0.20642514]
[1747921332457,0.03889536,111430.0,111420.0,4.1861417]
[1747921332655,0.22735447,111430.0,111420.0,4.18614186]
[1747921332909,0.22670052,111430.0,111420.0,4.7771525]
[1747921333063,0.22670052,111430.0,111420.0,4.79510202]
[1747921333264,0.03824141,111430.0,111420.0,4.52614202]
[1747921333500,0.22670044,111430.0,111420.0,5.00108738]
[1747921333644,0.20875284,111430.0,111420.0,4.983051]
[1747921334109,0.02029357,111430.0,111420.0,5.18150174]
[1747921334238,0.02029357,111430.0,111420.0,5.0282153]
[1747921334437,0.22670027,111430.0,111420.0,5.04616458]
[1747921334644,0.23567451,111430.0,111420.0,5.04616458]
[1747921334891,0.22670092,111430.0,111420.0,5.03719002]
[1747921335088,0.21772708,111430.0,111420.0,5.03719002]
[1747921335468,0.02029341,111430.0,111420.0,5.04616458]
[1747921335675,0.01131973,111430.0,111420.0,5.08753906]
[1747921335982,0.01097239,111450.0,111440.0,0.18844204]
[1747921336189,0.20852143,111450.0,111440.0,3.529019]
[1747921336457,0.19057681,111450.0,111440.0,3.529019]
[1747921336898,0.19057681,111450.0,111440.0,1.26372]
[1747921337122,0.19057681,111450.0,111440.0,1.53268]
[1747921337355,0.01112391,111450.0,111440.0,1.72112204]
[1747921337597,0.21749357,111450.0,111440.0,2.07906818]
[1747921337854,0.00415168,111450.0,111440.0,2.18655956]
[1747921338066,0.01312374,111450.0,111440.0,2.18655956]
[1747921338273,0.21532224,111460.0,111450.0,0.19739752]
[1747921338478,0.03588616,111460.0,111450.0,3.45745652]
[1747921338705,0.20635138,111460.0,111450.0,3.992534]
[1747921338906,0.19737996,111460.0,111450.0,0.93914]
[1747921339036,0.19737996,111460.0,111450.0,1.12756521]
[1747921339242,0.17948044,111480.0,111460.0,0.34]
[1747921339442,0.17948044,111480.0,111460.0,2.4787]
[1747921340051,0.17948044,111480.0,111460.0,0.9279]
[1747921340252,0.02691644,111450.0,111440.0,0.53741443]
[1747921340467,0.01794396,111450.0,111440.0,1.39304745]
[1747921340677,0.02691619,111450.0,111440.0,1.39304745]
[1747921340903,0.03588858,111450.0,111440.0,1.39304745]
[1747921341124,0.04486105,111450.0,111440.0,1.36185417]
[1747921341343,0.17945266,111450.0,111440.0,0.7528]
[1747921341587,0.17945266,111450.0,111440.0,0.9412422]
[1747921341791,0.002,111470.0,111460.0,0.17943656]
[1747921342020,0.20833257,111470.0,111460.0,0.43006159]
[1747921342227,0.19936211,111470.0,111460.0,1.09276]
[1747921342444,0.19741507,111440.0,111430.0,0.06088772]
[1747921342680,0.2063885,111440.0,111430.0,1.38617673]
[1747921342839,0.19541547,111440.0,111430.0,1.37127069]
[1747921343034,0.17946877,111440.0,111430.0,1.27275097]
[1747921343233,0.17946877,111440.0,111430.0,1.28172521]
[1747921343431,0.17946877,111440.0,111430.0,1.0932661]
[1747921343953,0.17946877,111440.0,111430.0,1.36229653]
[1747921344161,0.17946877,111440.0,111430.0,0.8253461]
[1747921344377,0.17946877,111440.0,111430.0,1.0962661]
[1747921344555,0.17946877,111440.0,111430.0,1.0942661]
[1747921344736,0.17946877,111440.0,111430.0,0.8253461]
[1747921344977,0.17946877,111440.0,111430.0,1.0942661]
[1747921345443,0.17946877,111440.0,111430.0,0.3415061]
[1747921345654,0.1884422,111440.0,111430.0,1.0942661]
[1747921345849,0.19741539,111440.0,111430.0,1.29169929]
[1747921346057,0.19741539,111440.0,111430.0,1.30067345]
[1747921346518,0.19741539,111440.0,111430.0,1.30964737]
[1747921346732,0.19741539,111440.0,111430.0,1.28272521]
[1747921346934,0.1884422,111440.0,111430.0,1.28272521]
[1747921347403,0.1884422,111440.0,111430.0,1.0942661]
[1747921347632,0.1884422,111440.0,111430.0,1.28272513]
[1747921347844,0.1884422,111440.0,111430.0,0.52996521]
[1747921348018,0.17946877,111440.0,111430.0,1.0942661]
[1747921348494,0.21536236,111440.0,111430.0,0.0015061]
[1747921348720,0.17946877,111440.0,111430.0,0.7542661]
[1747921348894,0.21277316,111440.0,111430.0,0.7542661]
[1747921349138,0.20996877,111440.0,111430.0,0.7542661]
[1747921349587,0.24126877,111440.0,111430.0,0.7542661]
[1747921349805,0.24126877,111440.0,111430.0,0.7525061]
[1747921350240,0.18146877,111440.0,111430.0,0.7525061]
[1747921350475,0.18146877,111440.0,111430.0,3.9922001]
[1747921350686,0.18146877,111440.0,111430.0,0.9444061]
[1747921351650,0.18146877,111440.0,111430.0,0.4835861]
[1747921351886,0.24336877,111440.0,111430.0,0.7525061]
[1747921352828,0.37519792,111440.0,111430.0,0.7525061]
[1747921353063,0.25975895,111430.0,111420.0,0.002]
[1747921353268,0.37384536,111430.0,111420.0,0.00250676]
[1747921353476,0.38735995,111430.0,111420.0,0.00250676]
[1747921353683,0.37384536,111430.0,111420.0,0.00250676]
[1747921354348,0.36484536,111430.0,111420.0,0.00250676]
[1747921354569,0.37340036,111430.0,111420.0,0.27142676]
[1747921355193,0.36340036,111430.0,111420.0,0.57142676]
[1747921355379,0.37340036,111430.0,111420.0,0.57142676]
[1747921355857,0.36340036,111430.0,111420.0,0.57142676]
[1747921356265,0.35484536,111430.0,111420.0,0.57142676]
[1747921356497,0.40837677,111430.0,111420.0,0.30250676]
[1747921356696,0.41837677,111430.0,111420.0,0.30250676]
[1747921356914,0.41137677,111430.0,111420.0,0.30250676]
[1747921357316,0.37684536,111430.0,111420.0,0.30250676]
[1747921357649,0.36684536,111430.0,111420.0,0.30250676]
[1747921357854,0.37684536,111430.0,111420.0,0.30250676]
[1747921358271,0.36684536,111430.0,111420.0,0.30250676]
[1747921358473,0.37684536,111430.0,111420.0,0.30250676]
[1747921358729,0.43343227,111430.0,111420.0,0.30250676]
[1747921359101,0.02094808,111430.0,111420.0,3.90015028]
[1747921359319,0.20940719,111430.0,111420.0,4.06170174]
[1747921359517,0.20043319,111430.0,111420.0,3.88220076]
[1747921360097,0.20043319,111430.0,111420.0,3.86117487]
[1747921360280,0.19743319,111430.0,111420.0,4.04067585]
[1747921360478,0.19743319,111430.0,111420.0,4.04965089]
[1747921360620,0.18248487,111430.0,111420.0,3.86117487]
[1747921360895,0.18248487,111430.0,111420.0,3.89227487]
[1747921361317,0.18248487,111430.0,111420.0,3.55227487]
[1747921361519,0.18248487,111430.0,111420.0,3.52117487]
[1747921361738,0.18248487,111430.0,111420.0,3.52188087]
[1747921363167,0.18248487,111430.0,111420.0,1.51398087]
[1747921365605,0.18248487,111430.0,111420.0,1.69348185]
[1747921365903,0.18248487,111430.0,111420.0,1.51398087]
[1747921366321,0.0209476,111430.0,111420.0,2.05143169]
[1747921366530,0.20940663,111430.0,111420.0,2.03348185]
[1747921366745,0.20043295,111430.0,111420.0,1.58498087]
[1747921366955,0.20043295,111430.0,111420.0,1.60754087]
[1747921367409,0.20043295,111430.0,111420.0,2.08974087]
[1747921367622,0.02992168,111430.0,111420.0,2.30514105]
[1747921367839,0.20043287,111430.0,111420.0,2.27821689]
[1747921368048,0.20043287,111430.0,111420.0,2.08974087]
[1747921368253,0.19145895,111430.0,111420.0,2.08974087]
[1747921368480,0.19145895,111430.0,111420.0,2.26924185]
[1747921368909,0.19145895,111430.0,111420.0,2.26928185]
[1747921369314,0.19145895,111430.0,111420.0,2.08978087]
[1747921369550,0.19145895,111430.0,111420.0,2.26928185]
[1747921369765,0.19145895,111430.0,111420.0,2.08978087]
[1747921369973,0.19145895,111430.0,111420.0,2.01538087]
[1747921370173,0.19145895,111430.0,111420.0,1.74642087]
[1747921370384,0.19145895,111430.0,111420.0,0.76992087]
[1747921370602,0.28100451,111430.0,111420.0,0.28152087]
[1747921370843,0.35834536,111430.0,111420.0,1.03264087]
[1747921371351,0.35834536,111430.0,111420.0,0.55048087]
[1747921371824,0.35834536,111430.0,111420.0,0.28152087]
[1747921372067,0.75422677,111430.0,111420.0,0.27910684]
[1747921372308,0.28450908,111410.0,111400.0,0.00204]
[1747921372541,0.38405464,111410.0,111400.0,0.00254701]
[1747921373237,0.37405464,111410.0,111400.0,0.00254701]
[1747921373534,0.38405464,111410.0,111400.0,0.00254701]
[1747921374224,0.30155464,111410.0,111400.0,0.27150701]
[1747921374967,0.28701379,111410.0,111400.0,0.27150701]
[1747921375545,0.28701379,111410.0,111400.0,0.00254701]
[1747921375764,0.28901379,111410.0,111400.0,0.27154701]
[1747921375969,0.28901379,111410.0,111400.0,0.75378701]
[1747921376957,0.3358667,111410.0,111400.0,0.75378701]
[1747921377396,0.3358667,111410.0,111400.0,0.7537102]
[1747921377610,0.28901379,111410.0,111400.0,0.7537102]
[1747921378042,0.30355464,111410.0,111400.0,0.4847102]
[1747921378261,0.30355464,111410.0,111400.0,0.7537502]
[1747921378478,0.28901379,111410.0,111400.0,0.7537502]
[1747921378927,0.33804161,111410.0,111400.0,0.7537502]
[1747921379137,0.40814161,111410.0,111400.0,0.0024702]
[1747921379571,0.37814161,111410.0,111400.0,0.0024702]
[1747921380220,0.36814161,111410.0,111400.0,0.0024702]
[1747921380433,0.33804161,111410.0,111400.0,0.0024702]
[1747921380868,0.41214161,111410.0,111400.0,0.0024702]
[1747921381326,0.37311379,111410.0,111400.0,0.0024702]
[1747921382176,0.37311379,111410.0,111400.0,0.0025102]
[1747921382916,0.30355464,111410.0,111400.0,0.0025102]
[1747921384244,0.38495464,111410.0,111400.0,0.0025102]
[1747921384896,0.37495464,111410.0,111400.0,0.0025102]
[1747921385104,0.45730964,111410.0,111400.0,0.0025102]
[1747921385918,0.46730964,111410.0,111400.0,0.0025102]
[1747921386233,0.45730964,111410.0,111400.0,0.0025102]
[1747921387140,0.45530964,111410.0,111400.0,0.0025102]
[1747921387353,1.92513936,111410.0,111400.0,0.0025102]
[1747921387566,1.92913936,111410.0,111400.0,0.0025102]
[1747921388009,1.23843936,111410.0,111400.0,0.0025102]
[1747921388239,1.23843936,111410.0,111380.0,0.00204]
[1747921388240,1.00017426,111390.0,111380.0,0.00204]
[1747921388496,0.22208,111370.0,111360.0,0.004]
[1747921388710,0.31162556,111370.0,111360.0,0.0045072]
[1747921388921,0.30162556,111370.0,111360.0,0.0045072]
[1747921389134,0.33242556,111370.0,111360.0,0.0045072]
[1747921389349,0.36522556,111370.0,111360.0,0.0045072]
[1747921389588,0.37522556,111370.0,111360.0,0.0045072]
[1747921389811,0.31162556,111370.0,111360.0,0.0045072]
[1747921390025,0.30162556,111370.0,111360.0,0.0045072]
[1747921391094,0.31162556,111370.0,111360.0,0.0045072]
[1747921391752,0.31462556,111370.0,111360.0,0.0045072]
[1747921391962,0.3750461,111370.0,111360.0,0.0045072]
[1747921393086,0.20311827,111360.0,111350.0,0.26912]
[1747921393228,0.29266383,111360.0,111350.0,0.2696286]
[1747921395433,0.29466383,111360.0,111350.0,0.2696286]
[1747921395641,0.29266383,111360.0,111350.0,0.2696286]
[1747921397170,0.18862823,111330.0,111320.0,0.06870193]
[1747921397377,0.18862823,111330.0,111320.0,3.7892249]
[1747921397835,0.18862823,111330.0,111320.0,3.8539249]
[1747921398085,0.18862823,111330.0,111320.0,1.4436309]
[1747921398296,0.18862823,111330.0,111320.0,1.71492897]
[1747921398527,0.31499961,111330.0,111320.0,0.54852897]
[1747921398757,0.32954046,111330.0,111320.0,0.75298897]
[1747921399001,0.29271464,111330.0,111320.0,0.75298897]
[1747921399442,0.29271464,111330.0,111320.0,0.48382897]
[1747921399901,0.29271464,111330.0,111320.0,0.00350897]
[1747921400130,0.29271464,111330.0,111320.0,0.27266897]
[1747921401296,0.29271464,111330.0,111320.0,0.26966897]
[1747921401798,0.29271464,111330.0,111320.0,0.27802092]
[1747921402227,0.3399491,111330.0,111320.0,0.27802092]
[1747921402655,0.20666628,111290.0,111280.0,0.53598849]
[1747921402837,0.20666628,111290.0,111280.0,4.35461414]
[1747921403268,0.19768132,111290.0,111280.0,4.05838538]
[1747921403643,0.19768132,111290.0,111280.0,2.73909138]
[1747921403860,0.19818746,111290.0,111280.0,1.0106]
[1747921404063,0.19771668,111270.0,111260.0,0.002]
[1747921404270,0.19771668,111270.0,111260.0,2.13474]
[1747921404738,0.18872994,111270.0,111260.0,2.47474]
[1747921404980,0.17974296,111270.0,111260.0,2.13474]
[1747921405175,0.18872994,111270.0,111260.0,1.86554]
[1747921405395,0.18872994,111270.0,111260.0,2.13478]
[1747921405682,0.18872994,111270.0,111260.0,2.74320168]
[1747921405683,0.00898698,111270.0,111260.0,2.74320168]
[1747921405836,0.17974119,111280.0,111270.0,0.25043002]
[1747921406048,0.17974119,111280.0,111270.0,2.3046]
[1747921406282,0.17974119,111280.0,111270.0,1.8675]
[1747921406485,0.17974119,111280.0,111270.0,0.2474]
[1747921406733,0.18872994,111270.0,111260.0,1.09168]
[1747921407048,0.18872994,111270.0,111260.0,4.395074]
[1747921407251,0.18872994,111270.0,111260.0,1.85088]
[1747921407484,0.18872994,111270.0,111260.0,1.81688]
[1747921408426,0.18872994,111270.0,111260.0,2.00662707]
[1747921408626,0.18873002,111270.0,111260.0,1.9519143]
[1747921408830,0.19771716,111270.0,111260.0,2.01461478]
[1747921409041,0.19771362,111280.0,111270.0,0.59142994]
[1747921409242,0.19771362,111280.0,111270.0,1.9116]
[1747921409649,0.19771362,111280.0,111270.0,0.5497]
[1747921411356,0.19771362,111280.0,111270.0,0.81898]
[1747921411725,0.19771362,111280.0,111270.0,1.2067]
[1747921412565,0.19871362,111280.0,111270.0,1.2067]
[1747921414760,0.28825918,111280.0,111270.0,0.87472]
[1747921414973,0.28825918,111280.0,111270.0,0.8664]
[1747921415170,0.30280003,111280.0,111270.0,0.8664]
[1747921415369,0.30280003,111280.0,111270.0,1.13568]
[1747921415597,0.30280003,111280.0,111270.0,1.14403158]
[1747921415800,0.30280003,111280.0,111270.0,0.00835158]
[1747921415801,0.44905336,111280.0,111270.0,0.00835158]
[1747921416004,0.51298038,111280.0,111270.0,0.00835158]
[1747921416337,0.52198038,111280.0,111270.0,0.00835158]
[1747921416494,0.53048651,111280.0,111270.0,0.00835158]
[1747921416702,0.38840616,111280.0,111270.0,0.00835158]
[1747921417105,0.31430616,111280.0,111270.0,0.00835158]
[1747921417312,0.31430616,111280.0,111270.0,0.27767158]
[1747921417704,0.29976531,111280.0,111270.0,0.27767158]
[1747921418098,0.21021975,111280.0,111270.0,0.27767158]
[1747921418476,0.21021975,111280.0,111270.0,0.61767158]
[1747921418956,0.21021975,111280.0,111270.0,0.68277158]
[1747921419154,0.20171362,111280.0,111270.0,3.92246558]
[1747921419359,0.20171362,111280.0,111270.0,1.73857158]
[1747921419582,0.20171362,111280.0,111270.0,1.69427158]
[1747921419783,0.20171362,111280.0,111270.0,1.49087158]
[1747921419994,0.19771362,111280.0,111270.0,0.65067158]
[1747921420181,0.19771362,111280.0,111270.0,0.61767158]
[1747921420357,0.19771362,111280.0,111270.0,3.92166558]
[1747921420794,0.19871362,111280.0,111270.0,3.65647158]
[1747921421674,0.19871362,111280.0,111270.0,2.25267158]
[1747921421874,0.19871362,111280.0,111270.0,1.89617158]
[1747921422075,0.19871362,111280.0,111270.0,0.61767158]
[1747921422303,0.19871362,111280.0,111270.0,2.83995158]
[1747921422504,0.19871362,111280.0,111270.0,3.38639158]
[1747921422705,0.19871362,111280.0,111270.0,2.11189158]
[1747921423390,0.19871362,111280.0,111270.0,2.14429158]
[1747921423589,0.19871362,111280.0,111270.0,2.17579158]
[1747921423992,0.19871362,111280.0,111270.0,1.43673872]
[1747921424106,0.001,111280.0,111270.0,2.4810277]
[1747921424309,0.00050614,111290.0,111280.0,0.4037]
[1747921424537,0.00050614,111290.0,111280.0,4.32742441]
[1747921424752,0.0179684,111300.0,111290.0,0.61036628]
[1747921424975,0.02695288,111300.0,111290.0,4.20897673]
[1747921425176,0.20664739,111300.0,111290.0,4.19999177]
[1747921425385,0.19766363,111300.0,111290.0,4.18202111]
[1747921425588,0.19766363,111300.0,111290.0,4.19100656]
[1747921426002,0.19766363,111300.0,111290.0,4.19999193]
[1747921426198,0.19766363,111300.0,111290.0,4.20897722]
[1747921426599,0.19766363,111300.0,111290.0,4.22694747]
[1747921427084,0.00898424,111300.0,111290.0,4.22694698]
[1747921427230,0.01796823,111300.0,111290.0,4.21796194]
[1747921427418,0.21563194,111300.0,111290.0,3.9486421]
[1747921427630,0.01796815,111300.0,111290.0,4.22694706]
[1747921427831,0.02695255,111300.0,111290.0,4.22694706]
[1747921428041,0.02795255,111300.0,111290.0,4.24057697]
[1747921428287,0.01896815,111300.0,111290.0,4.24057697]
[1747921428466,0.03693703,111300.0,111290.0,4.24057697]
[1747921428670,0.21663154,111300.0,111290.0,4.23159201]
[1747921428880,0.21663154,111300.0,111290.0,4.22260689]
[1747921429107,0.03693695,111300.0,111290.0,4.23159185]
[1747921429321,0.04592151,111300.0,111290.0,4.23159185]
[1747921429540,0.00998399,111300.0,111290.0,4.23159185]
[1747921429764,0.002,111310.0,111300.0,0.60684771]
[1747921429974,0.01098327,111310.0,111300.0,4.41476727]
[1747921430208,0.002,111310.0,111300.0,4.41476727]
[1747921430437,0.01748754,111340.0,111330.0,0.25092815]
[1747921430663,0.00850613,111340.0,111330.0,4.64434635]